[Event "58th Akiba Rubinstein D 2022"]
[Site "Polanica-Zdroj"]
[Date "2022.08.17"]
[Round "5.5"]
[White "Meizlin, Yaacov"]
[Black "Klisowski, Bartosz"]
[Result "1-0"]
[ECO "B32"]
[WhiteElo "1938"]
[BlackElo "1595"]
[Annotator "TA"]
[PlyCount "131"]
[EventDate "2022.08.13"]
[EventCountry "POL"]
[SourceTitle "playchess.com"]
[Source "ChessBase"]
[SourceQuality "1"]
[TimeControl "40/5400+30:1800+30"]

{[%evp 11,131,27,31,21,30,13,33,15,28,0,0,0,0,0,0,-19,-30,-20,44,0,0,-72,-51,-48,13,0,45,62,48,-31,52,45,47,34,120,110,147,150,154,-46,0,-38,-34,-36,7,0,50,-24,0,0,9,0,0,0,0,-8,0,-17,0,0,-6,-13,34,23,23,23,34,34,90,94,100,34,70,34,206,53,66,34,280,34,416,358,350,322,805,727,696,621,641,585,913,487,890,849,1208,1133,1158,1094,933,0,12838,1157,12841,1668,2226,2028,1800,1600,29982,2448,29983,29984,29984,29985,29985,29986,29985,12842,29990,29991,29997,1297]} 1. e4 {[%emt 0:00:10]} c5 {[%emt 0:00:07]} 2. Nf3 {[%emt 0:00:13]} Nc6 {[%emt 0:00:02]} 3. d4 {[%emt 0:00:18]} cxd4 {[%emt 0:00:04]} 4. c3 {[%emt 0:00:08]} d3 {[%emt 0:00:03]} 5. c4 {[%emt 0:00:13]} g6 {[%emt 0:00:25]} 6. Bxd3 {[%emt 0:01:22]} Bg7 {[%emt 0:00:23]} 7. O-O {[%emt 0:00:25] B21: Sicilian: 2 f4 and Morra Gambit.} d6 {[%emt 0:00:01]} 8. h3 {[%emt 0:01:29]} Nf6 {[%emt 0:00:37][%cal Bg8f6,Bf6d7,Bd7c5][%mdl 32]} 9. Nc3 {[%emt 0:00:16] White is slightly better.} Nd7 {[%emt 0:00:41]} 10. Be3 {[%emt 0:01:45]} Bxc3 {[%emt 0:02:48]} 11. bxc3 {[%emt 0:00:08]} Nc5 {[%emt 0:00:11]} 12. Bc2 {[%emt 0:00:51][%cal Oe4e5] [#]} Be6 $146 {[%emt 0:00:50]} ({Predecessor:} 12... Qa5 13. e5 dxe5 14. Rb1 Ne6 15. Bh6 f6 16. Qd2 Qc7 17. Rfd1 Bd7 18. Be4 Nc5 {0-1 (29) Franklin,T-Correa,M ICCF email 2018}) 13. Qe2 {[%emt 0:01:21][%cal Oe4e5]} Qa5 {[%emt 0:04:41]} 14. Bd4 {[%emt 0:03:05]} Rg8 {[%emt 0:07:20]} (14... f6 $11) 15. Ng5 {[%emt 0:02:55]} h6 {[%emt 0:00:34][%cal Bh7h6,Bh6g5,Bg5g4][%mdl 32]} 16. Bxc5 {[%emt 0:00:31]} (16. Nf3 $11 {remains equal.}) 16... hxg5 $17 {[%emt 0:01:59]} 17. Bd4 {[%emt 0:05:20]} Ne5 {[%emt 0:11:56]} (17... f6 $15) 18. Bb3 $11 {[%emt 0:01:20][%cal Oc4c5]} g4 {[%emt 0:16:58]} (18... Qa6 $5 {[%cal Re6c4]}) 19. c5 {[%emt 0:10:33]} gxh3 {[%emt 0:06:33]} 20. g3 {[%emt 0:18:17]} (20. Bxe6 $1 $14 fxe6 21. Rfb1) 20... Bd7 {[%emt 0:12:36]} (20... Qa6 $15 21. Qxa6 Nf3+ 22. Kh1 bxa6) 21. cxd6 $14 exd6 {[%emt 0:00:07]} 22. f4 {[%emt 0:11:54]} Bg4 {[%emt 0:01:14]} (22... Ng4 $1 $14) 23. Qe3 $16 {[%emt 0:01:58][%mdl 1024] White has strong compensation.} (23. Bxf7+ $2 Kf8 24. Qb2 Nxf7 $19) 23... h2+ {[%emt 0:03:43]} 24. Kh1 {[%emt 0:04:24]} Nc6 {[%emt 0:02:26]} 25. e5 $2 {[%emt 0:01:16]} (25. Kxh2 $2 Nxd4 26. cxd4 Rh8+ 27. Kg2 Bh3+ 28. Kf2 Bxf1 29. Rxf1 Rh2+ 30. Kg1 Qh5 $19) (25. Bf6 $16) 25... d5 {[%emt 0:00:20]} (25... O-O-O $15 {feels stronger.}) 26. Rf2 {[%emt 0:11:38]} Bf5 {[%emt 0:02:17]} 27. Bc2 {[%emt 0:00:40] Inhibits Be4+.} (27. Kxh2 $2 Rh8+ 28. Kg1 Be4 $19) 27... Ne7 {[%emt 0:00:30]} 28. Rb1 {[%emt 0:08:01]} b6 {[%emt 0:01:26]} (28... O-O-O $11) 29. Qf3 {[%emt 0:00:35]} ({Reject} 29. Kxh2 Be6 $11) (29. e6 $1 $14 Bxe6 30. Bf6 (30. Rxh2 O-O-O $11)) 29... Bxc2 {[%emt 0:04:23]} 30. Rxc2 {[%emt 0:00:02]} Qa4 {[%emt 0:01:38]} 31. Rxh2 {[%emt 0:00:50][%cal Oe5e6]} O-O-O {[%emt 0:01:22]} 32. Rb4 {[%emt 0:00:35]} Qa3 {[%emt 0:00:35]} 33. Qf2 {[%emt 0:06:01]} Nc6 {[%emt 0:01:22]} 34. Rb3 {[%emt 0:00:44]} Qc1+ {[%emt 0:02:37]} 35. Qg1 {[%emt 0:00:35]} Qxg1+ {[%emt 0:00:12]} 36. Kxg1 {[%emt 0:00:00]} Rh8 {[%emt 0:02:26]} (36... Kd7 $11) 37. Rxh8 {[%emt 0:00:40]} Rxh8 $14 {[%emt 0:00:01][%mdl 4096] Endgame KRB-KRN} 38. Rb5 {[%emt 0:00:14]} Rd8 {[%emt 0:03:10]} 39. Kf2 {[%emt 0:00:39]} Nxd4 {[%emt 0:00:55]} (39... Kc7 $14) 40. cxd4 {[%emt 0:00:01] aiming for Kf3. KR-KR} Kb7 {[%emt 0:00:18]} 41. g4 {[%emt 0:30:28]} (41. Rb1 $16) 41... a6 {[%emt 0:30:09]} 42. Rb2 {[%emt 0:00:48] Black must now prevent Kg3.} Rc8 $2 {[%emt 0:00:07] [#]} (42... Rh8 $14 43. Kg3 Kc7) 43. f5 $2 {[%emt 0:00:08]} (43. Kg3 $1 $18) 43... g5 $1 {[%emt 0:01:58]} 44. Re2 {[%emt 0:00:45]} Re8 $2 {[%emt 0:01:41] Black is now going downhill.} (44... a5 $1 $14) 45. Ke3 $2 {[%emt 0:00:15]} ({Better is} 45. Re1 $18) 45... Kc6 $2 {[%emt 0:00:18][%mdl 8192]} (45... Rh8 $14) 46. Rc2+ {[%emt 0:00:24]} Kd7 {[%emt 0:00:13]} 47. Rh2 {[%emt 0:00:31] Prevents Rh8.} f6 $2 {[%emt 0:01:52]} (47... Rc8 48. Rh7 Ke8) 48. e6+ {[%emt 0:01:32]} ({Less strong is} 48. Rh6 fxe5 49. Rxb6 a5 $18) 48... Kd6 49. Rh6 {[%emt 0:01:30]} Rf8 {[%emt 0:01:28]} 50. Rh7 {[%emt 0:00:08]} a5 {[%emt 0:02:12]} 51. Rd7+ {[%emt 0:00:13]} Kc6 {[%emt 0:00:05]} 52. Rf7 {[%emt 0:00:11]} Rh8 {[%emt 0:00:07]} 53. Rxf6 {[%emt 0:00:17]} Rh3+ {[%emt 0:00:00]} 54. Kf2 {[%emt 0:00:57]} Rh2+ {[%emt 0:00:17]} 55. Ke3 $2 {[%emt 0:00:37]} ({White should try} 55. Kf3 $18 Kd6 56. Rf8) 55... Rxa2 $2 {[%emt 0:00:06][%mdl 8192]} (55... Rh3+ $11 56. Kf2 Kd6) 56. Rg6 {[%emt 0:00:07]} (56. e7+ $142 Kd7 57. Re6 Ra3+ 58. Kd2 Ra2+ 59. Ke3 Ra3+ 60. Ke2 Ra2+ 61. Ke3) 56... a4 {[%emt 0:00:54]} 57. Rxg5 {[%emt 0:00:05]} (57. f6 $142 Ra3+ 58. Kd2) 57... Kd6 {[%emt 0:00:07]} 58. Rg7 {[%emt 0:00:28]} Ra1 {[%emt 0:00:11]} 59. Kd2 {[%emt 0:01:07] [#] Threatening mate with Rd7+.} Rb1 {[%emt 0:00:19]} 60. Rd7+ {[%emt 0:00:59]} Kc6 {[%emt 0:00:02]} 61. Ra7 {[%emt 0:00:30]} Rb2+ {[%emt 0:00:15]} 62. Ke3 {[%emt 0:01:30]} Rb3+ {[%emt 0:02:39]} 63. Kf4 {[%emt 0:00:16]} Rb4 {[%emt 0:00:08]} 64. Ke5 {[%emt 0:00:18]} (64. f6 $142 Rxd4+ 65. Kf5 Rd1 66. e7 Rf1+ 67. Kg6 Kb5 68. e8=Q+ Kb4 69. Qe7+ Kc3 70. Qe3+ Kb4 71. Qd4+ Kb3 72. Rxa4) 64... b5 {[%emt 0:00:14]} 65. e7 {[%emt 0:00:08]} Rb1 {[%emt 0:00:05]} 66. e8=Q+ {[%emt 0:00:03] Weighted Error Value: White=0.47/Black=0.66} 1-0

[Event "58th Akiba Rubinstein D 2022"]
[Site "Polanica-Zdroj"]
[Date "2022.08.17"]
[Round "5.6"]
[White "Zerebiec, Maurycy"]
[Black "Bem, Tymoteusz"]
[Result "1/2-1/2"]
[ECO "B20"]
[WhiteElo "1915"]
[BlackElo "1679"]
[Annotator "RC"]
[PlyCount "54"]
[EventDate "2022.08.13"]
[EventCountry "POL"]
[SourceTitle "playchess.com"]
[Source "ChessBase"]
[SourceQuality "1"]
[TimeControl "40/5400+30:1800+30"]

1. e4 {[%emt 0:04:19]} c5 2. c4 {[%emt 0:00:05]} Nc6 {[%emt 0:00:55]} 3. Nc3 {[%emt 0:00:01]} g6 {[%emt 0:01:28]} 4. g3 {[%emt 0:00:07]} Bg7 {[%emt 0:00:24]} 5. Bg2 {[%emt 0:00:02]} d6 {[%emt 0:01:38]} 6. Nge2 {[%emt 0:00:02]} h5 {[%emt 0:03:39]} 7. h3 {[%emt 0:01:46]} Nf6 {[%emt 0:01:36]} 8. d3 {[%emt 0:00:02]} Bd7 {[%emt 0:01:30]} 9. Be3 {[%emt 0:00:21]} a6 {[%emt 0:03:27]} 10. Qd2 {[%emt 0:05:08]} Qa5 {[%emt 0:08:54]} 11. Nd5 {[%emt 0:09:18]} Qxd2+ {[%emt 0:07:19]} 12. Kxd2 {[%emt 0:04:09]} Rb8 {[%emt 0:08:23]} 13. Nb6 {[%emt 0:02:31]} Kd8 {[%emt 0:02:07]} 14. Rab1 {[%emt 0:00:18]} e6 {[%emt 0:10:08]} 15. a3 {[%emt 0:04:16]} Kc7 {[%emt 0:05:54]} 16. Nxd7 {[%emt 0:01:22]} Nxd7 {[%emt 0:00:59]} 17. b4 {[%emt 0:02:32]} b5 {[%emt 0:02:24]} 18. cxb5 {[%emt 0:00:47]} Rxb5 {[%emt 0:01:25]} 19. bxc5 {[%emt 0:01:23]} Nxc5 {[%emt 0:03:02]} 20. Rxb5 {[%emt 0:07:09]} axb5 {[%emt 0:00:09]} 21. Rb1 {[%emt 0:00:19]} Ra8 {[%emt 0:04:21]} 22. d4 {[%emt 0:18:05]} Na4 {[%emt 0:11:24]} 23. Rxb5 {[%emt 0:02:29]} e5 {[%emt 0:01:25]} 24. d5 {[%emt 0:05:23]} Nd4 {[%emt 0:00:51]} 25. Rb4 {[%emt 0:03:57]} Nc5 {[%emt 0:03:58]} 26. Nc3 {[%emt 0:04:14]} Ncb3+ {[%emt 0:01:17]} 27. Kd1 Rxa3 1/2-1/2

[Event "58th Akiba Rubinstein D 2022"]
[Site "Polanica-Zdroj"]
[Date "2022.08.17"]
[Round "5.7"]
[White "Mareau, Timothe"]
[Black "Gbiorczyk, Mikolaj"]
[Result "1/2-1/2"]
[ECO "B06"]
[WhiteElo "1590"]
[BlackElo "1781"]
[Annotator "NA RC"]
[PlyCount "106"]
[EventDate "2022.08.13"]
[EventCountry "POL"]
[SourceTitle "playchess.com"]
[Source "ChessBase"]
[SourceQuality "1"]
[TimeControl "40/5400+30:1800+30"]

1. e4 d6 2. d4 g6 3. Nc3 Bg7 4. Be3 a6 5. Qd2 b5 6. f4 Bb7 7. Bd3 Nd7 8. Nce2 Ngf6 9. Ng3 Ng4 10. Nf3 Nxe3 11. Qxe3 c5 12. c3 cxd4 13. cxd4 Qa5+ 14. Qd2 Qxd2+ 15. Kxd2 Nb6 16. Rac1 Kd7 17. Nf1 Rac8 18. Ne3 Bh6 19. g3 f5 20. d5 fxe4 21. Bxe4 Bg7 22. b3 a5 23. Rxc8 Rxc8 24. Ng5 Bd4 25. Nxh7 Bxe3+ 26. Kxe3 Bxd5 27. Bxd5 Nxd5+ 28. Kd2 Nb4 29. a3 Rc2+ 30. Ke3 Nd5+ 31. Kd3 Ra2 32. Nf8+ Ke8 33. Nxg6 Rxa3 34. Kd4 Nf6 35. Re1 Ng8 36. Re3 Kf7 37. f5 a4 38. bxa4 Rxe3 39. Kxe3 bxa4 40. Kd3 Nh6 41. Nh4 Kf6 42. Kc4 Nxf5 43. Ng2 d5+ 44. Kb4 d4 45. Kxa4 Ne3 46. Ne1 e6 47. Kb3 e5 48. g4 Nxg4 49. Kc4 Nxh2 50. Kd5 Kf5 51. Nd3 Ng4 52. Nxe5 Nxe5 53. Kxd4 Nd7 1/2-1/2

[Event "58th Akiba Rubinstein D 2022"]
[Site "Polanica-Zdroj"]
[Date "2022.08.17"]
[Round "5.8"]
[White "Penza, Denis"]
[Black "Butkiewicz, Jan"]
[Result "1-0"]
[ECO "E32"]
[WhiteElo "1836"]
[BlackElo "1613"]
[Annotator "NA RC"]
[PlyCount "95"]
[EventDate "2022.08.13"]
[EventCountry "POL"]
[SourceTitle "playchess.com"]
[Source "ChessBase"]
[SourceQuality "1"]
[TimeControl "40/5400+30:1800+30"]

{[%evp 9,95,-15,-3,0,0,-1,0,0,8,-10,1,32767,0,-7,36,34,31,37,32767,32767,32767,32767,32767,53,50,60,60,62,79,19,85,87,96,45,32767,-50,-35,-57,-26,-29,-17,-20,-20,-13,-28,-34,-28,-43,0,32767,0,-47,32767,32767,32767,32767,32767,32767,32767,32767,32767,32767,32767,32767,32767,32767,32767,32767,32767,32767,32767,32767,32767,32767,32767,32767,32767,32767,32767,32767,32767,32767,32767,32767,32767,32767,29981,29983]} 1. d4 {[%emt 0:00:03]} Nf6 {[%emt 0:00:10]} 2. c4 {[%emt 0:00:05]} e6 {[%emt 0:00:07]} 3. Nc3 {[%emt 0:00:05]} Bb4 {[%emt 0:00:05]} 4. Qc2 {[%emt 0:00:04]} O-O {[%emt 0:00:07]} 5. a3 {[%emt 0:00:13]} Bxc3+ {[%emt 0:00:10]} 6. Qxc3 {[%emt 0:00:09]} b6 {[%emt 0:00:03]} 7. Bg5 {[%emt 0:00:25]} Bb7 {[%emt 0:00:10]} 8. f3 {[%emt 0:00:12]} h6 {[%emt 0:00:06]} 9. Bh4 {[%emt 0:00:50]} d5 {[%emt 0:00:06]} 10. cxd5 {[%emt 0:04:19]} exd5 {[%emt 0:00:42]} 11. e3 {[%emt 0:00:35]} Nbd7 {[%emt 0:05:40]} (11... Re8 $11 {is superior.}) 12. Bd3 {[%emt 0:00:41]} Re8 {[%emt 0:03:02]} 13. Ne2 {[%emt 0:01:25]} Qe7 {[%emt 0:22:42]} 14. Bf2 {[%emt 0:00:32]} c5 {[%emt 0:00:47]} 15. O-O {[%emt 0:03:05]} c4 {[%emt 0:06:45]} 16. Bc2 {[%emt 0:01:23]} b5 {[%emt 0:08:15]} 17. Qa5 {[%emt 0:06:12]} Bc6 {[%emt 0:03:59]} 18. Ng3 {[%emt 0:05:41]} Qd8 {[%emt 0:04:19]} 19. Qxd8 {[%emt 0:03:57]} (19. Qd2 $14) 19... Rexd8 {[%emt 0:01:11] [#]} (19... Raxd8 $11 {keeps the balance.} 20. Rfe1 h5) 20. e4 $1 {[%emt 0:02:03]} Nb6 {[%emt 0:02:53]} 21. Nf5 {[%emt 0:02:50]} (21. e5 $16 Ne8 22. f4 (22. Nf5 Bd7 $14)) 21... Bd7 {[%emt 0:04:42]} 22. g4 {[%emt 0:07:39]} ({White should play} 22. Nd6 $11) 22... dxe4 {[%emt 0:04:14]} 23. Bxe4 {[%emt 0:01:37]} Nxe4 {[%emt 0:04:48]} 24. fxe4 {[%emt 0:00:12]} Na4 {[%emt 0:05:28]} 25. Rab1 {[%emt 0:01:11]} Bxf5 {[%emt 0:03:16]} 26. gxf5 {[%emt 0:00:59]} c3 {[%emt 0:02:21]} 27. bxc3 {[%emt 0:06:05]} Nxc3 {[%emt 0:00:08]} 28. Rbe1 {[%emt 0:00:08]} a5 {[%emt 0:01:09]} 29. Re3 {[%emt 0:13:34]} b4 {[%emt 0:01:31]} 30. Kg2 {[%emt 0:08:49]} (30. d5 $11) 30... Rac8 {[%emt 0:10:20]} 31. axb4 {[%emt 0:00:48]} axb4 {[%emt 0:00:37]} 32. d5 {[%emt 0:05:35]} Re8 {[%emt 0:03:23]} 33. Kf3 {[%emt 0:01:52]} Re7 {[%emt 0:02:27]} 34. Be1 {[%emt 0:04:38]} Rce8 {[%emt 0:01:07]} 35. Bxc3 {[%emt 0:00:33]} bxc3 {[%emt 0:00:08]} 36. Rc1 {[%emt 0:00:09]} f6 {[%emt 0:00:55]} 37. Rcxc3 {[%emt 0:00:36]} Kf7 {[%emt 0:00:16]} 38. Rc6 {[%emt 0:00:54]} g5 {[%emt 0:00:20]} 39. Re6 {[%emt 0:01:56]} Rxe6 {[%emt 0:00:49]} 40. dxe6+ {[%emt 0:00:11]} Ke7 {[%emt 0:00:25]} 41. Kg4 {[%emt 0:30:51]} Rd8 {[%emt 0:30:16]} 42. Kh5 {[%emt 0:00:29]} Rd2 {[%emt 0:00:30]} 43. Kxh6 {[%emt 0:02:08]} Rxh2+ {[%emt 0:00:06]} 44. Kg7 {[%emt 0:00:28]} Rc2 {[%emt 0:00:45]} 45. Rd3 {[%emt 0:03:12]} Rc7 {[%emt 0:00:14]} 46. Kg6 {[%emt 0:00:57]} Ra7 {[%emt 0:00:32]} 47. e5 {[%emt 0:02:54]} fxe5 {[%emt 0:00:10]} 48. Rd7+ {[%emt 0:01:18]} 1-0

[Event "58th Akiba Rubinstein D 2022"]
[Site "Polanica-Zdroj"]
[Date "2022.08.17"]
[Round "5.9"]
[White "Wilgosz, Szczepan"]
[Black "Sola, Wojciech"]
[Result "1-0"]
[ECO "B35"]
[WhiteElo "1530"]
[BlackElo "1780"]
[Annotator "NA RC"]
[PlyCount "138"]
[EventDate "2022.08.13"]
[EventCountry "POL"]
[SourceTitle "playchess.com"]
[Source "ChessBase"]
[SourceQuality "1"]
[TimeControl "40/5400+30:1800+30"]

1. e4 {[%emt 0:00:04]} c5 {[%emt 0:00:08]} 2. Nf3 {[%emt 0:00:20]} g6 {[%emt 0:00:19]} 3. d4 {[%emt 0:00:15]} cxd4 {[%emt 0:00:08]} 4. Nxd4 {[%emt 0:00:16]} Bg7 {[%emt 0:00:18]} 5. Nc3 {[%emt 0:00:21]} Nc6 {[%emt 0:00:14]} 6. Be3 {[%emt 0:00:15]} Nf6 {[%emt 0:00:20]} 7. Bc4 {[%emt 0:00:26]} Qa5 {[%emt 0:02:41]} 8. O-O {[%emt 0:00:38]} O-O {[%emt 0:05:49]} 9. Bb3 {[%emt 0:00:32]} d6 {[%emt 0:00:40]} 10. h3 {[%emt 0:01:01]} Bd7 {[%emt 0:01:02]} 11. f4 {[%emt 0:01:28]} Nxd4 {[%emt 0:02:48]} 12. Bxd4 {[%emt 0:00:46]} Bc6 {[%emt 0:00:45]} 13. Qe1 {[%emt 0:23:13]} e5 {[%emt 0:12:07]} 14. fxe5 {[%emt 0:14:33]} dxe5 {[%emt 0:00:24]} 15. Bf2 {[%emt 0:00:41]} Rad8 {[%emt 0:07:38]} 16. Bh4 {[%emt 0:02:19]} Rd6 {[%emt 0:01:31]} 17. Nd5 {[%emt 0:12:46]} Qxe1 {[%emt 0:04:20]} 18. Raxe1 {[%emt 0:08:33]} Bxd5 {[%emt 0:14:36]} 19. exd5 {[%emt 0:01:39]} Re8 {[%emt 0:04:15]} 20. c4 {[%emt 0:03:04]} Nd7 {[%emt 0:03:26]} 21. Ba4 {[%emt 0:03:32]} Kf8 {[%emt 0:21:48]} 22. c5 {[%emt 0:02:49]} Nxc5 {[%emt 0:01:09]} 23. Bxe8 {[%emt 0:00:11]} Kxe8 {[%emt 0:00:13]} 24. Rd1 {[%emt 0:02:24]} f5 {[%emt 0:02:04]} 25. Bf2 {[%emt 0:05:08]} b6 {[%emt 0:01:31]} 26. Rfe1 {[%emt 0:03:10]} g5 {[%emt 0:05:39]} 27. g4 {[%emt 0:04:58]} f4 {[%emt 0:00:12]} 28. Bxc5 {[%emt 0:00:20]} bxc5 {[%emt 0:00:02]} 29. Re4 {[%emt 0:00:33]} Rb6 {[%emt 0:01:52]} 30. b3 {[%emt 0:01:20]} Kd7 {[%emt 0:01:01]} 31. Kg2 {[%emt 0:03:59]} Kd6 {[%emt 0:00:47]} 32. Ra4 {[%emt 0:01:23]} a6 {[%emt 0:00:49]} 33. Kf3 {[%emt 0:00:39]} h6 {[%emt 0:01:44]} 34. Ke4 {[%emt 0:00:31]} Bf6 {[%emt 0:03:02]} 35. Rc1 {[%emt 0:00:35]} Bd8 {[%emt 0:00:32]} 36. Kf5 {[%emt 0:01:46]} Bc7 {[%emt 0:00:25]} 37. Ra5 {[%emt 0:01:04]} Kd7 {[%emt 0:02:06]} 38. Raxc5 {[%emt 0:00:14]} Bd6 {[%emt 0:00:14]} 39. Rc6 {[%emt 0:00:35]} Rb5 {[%emt 0:00:01]} 40. Ke4 {[%emt 0:00:49]} a5 {[%emt 0:00:26]} 41. Ra6 {[%emt 0:30:17]} f3 {[%emt 0:30:26]} 42. Ra7+ {[%emt 0:01:07]} Kd8 {[%emt 0:00:34]} 43. Rf1 {[%emt 0:00:33]} Rb4+ {[%emt 0:00:27]} 44. Kxf3 {[%emt 0:00:20]} Rf4+ {[%emt 0:01:24]} 45. Kg2 {[%emt 0:00:07]} Rd4 {[%emt 0:00:17]} 46. Rxa5 {[%emt 0:00:25]} e4 {[%emt 0:00:08]} 47. Ra4 {[%emt 0:00:52]} Rd3 {[%emt 0:00:53]} 48. Rxe4 {[%emt 0:00:38]} Rg3+ {[%emt 0:00:09]} 49. Kf2 {[%emt 0:00:09]} Rxh3 {[%emt 0:00:02]} 50. Ke2 {[%emt 0:00:51]} Bf4 {[%emt 0:00:26]} 51. Rexf4 {[%emt 0:00:51]} gxf4 {[%emt 0:00:08]} 52. Rxf4 {[%emt 0:00:03]} Rh4 {[%emt 0:00:16]} 53. Ra4 {[%emt 0:00:42]} Kd7 {[%emt 0:00:35]} 54. Kf3 {[%emt 0:00:42]} Kd6 {[%emt 0:00:17]} 55. Ra5 {[%emt 0:00:29]} h5 {[%emt 0:00:58]} 56. gxh5 {[%emt 0:00:40]} Rxh5 {[%emt 0:00:03]} 57. Ke4 {[%emt 0:00:18]} Rh4+ {[%emt 0:00:39]} 58. Kd3 {[%emt 0:00:13]} Rh1 {[%emt 0:00:19]} 59. Kc4 {[%emt 0:00:36]} Rh4+ {[%emt 0:00:13]} 60. Kc3 {[%emt 0:00:15]} Rh3+ {[%emt 0:00:44]} 61. Kb4 {[%emt 0:00:34]} Rg3 {[%emt 0:00:33]} 62. Ka4 {[%emt 0:00:23]} Rg2 {[%emt 0:00:23]} 63. a3 {[%emt 0:00:07]} Rg4+ {[%emt 0:00:14]} 64. b4 {[%emt 0:00:05]} Rg3 {[%emt 0:00:14]} 65. Rc5 {[%emt 0:00:20]} Rh3 {[%emt 0:00:18]} 66. Rc1 {[%emt 0:01:42]} Kxd5 {[%emt 0:00:13]} 67. b5 {[%emt 0:00:10]} Kd6 {[%emt 0:00:17]} 68. Kb4 {[%emt 0:00:41]} Rh2 {[%emt 0:00:11]} 69. Ka5 {[%emt 0:00:34]} Kd5 1-0

[Event "58th Akiba Rubinstein D 2022"]
[Site "Polanica-Zdroj"]
[Date "2022.08.17"]
[Round "5.10"]
[White "Szczepanski, Krzysztof"]
[Black "Sleczka, Krzysztof"]
[Result "1/2-1/2"]
[ECO "D46"]
[WhiteElo "1790"]
[BlackElo "1443"]
[Annotator "NA RC"]
[PlyCount "117"]
[EventDate "2022.08.13"]
[EventCountry "POL"]
[SourceTitle "playchess.com"]
[Source "ChessBase"]
[SourceQuality "1"]
[TimeControl "40/5400+30:1800+30"]

1. Nf3 {[%emt 0:02:05]} d5 {[%emt 0:00:03]} 2. d4 {[%emt 0:00:10]} Nf6 {[%emt 0:00:04]} 3. c4 {[%emt 0:00:26]} e6 {[%emt 0:00:04]} 4. Nc3 {[%emt 0:00:21]} c6 {[%emt 0:00:13]} 5. e3 {[%emt 0:00:38]} Be7 {[%emt 0:01:27]} 6. Bd3 {[%emt 0:00:15]} Nbd7 {[%emt 0:00:44]} 7. O-O {[%emt 0:00:16]} dxc4 {[%emt 0:01:23]} 8. Bxc4 {[%emt 0:00:31]} b5 {[%emt 0:00:03]} 9. Bd3 {[%emt 0:00:37]} Bb7 {[%emt 0:00:46]} 10. a3 {[%emt 0:05:16]} a6 {[%emt 0:01:37]} 11. Bd2 {[%emt 0:00:27]} c5 {[%emt 0:04:18]} 12. Rc1 {[%emt 0:05:20]} Rc8 {[%emt 0:04:31]} 13. Bb1 {[%emt 0:00:29]} O-O {[%emt 0:04:09]} 14. dxc5 {[%emt 0:06:10]} Nxc5 {[%emt 0:07:14]} 15. Ne2 {[%emt 0:04:14]} Nce4 {[%emt 0:15:26]} 16. Rxc8 {[%emt 0:00:39]} Bxc8 {[%emt 0:02:44]} 17. Qc2 {[%emt 0:11:16]} Nxd2 {[%emt 0:02:46]} 18. Nxd2 {[%emt 0:01:22]} Bb7 {[%emt 0:01:32]} 19. Nc3 {[%emt 0:05:03]} g6 {[%emt 0:03:05]} 20. h3 {[%emt 0:04:22]} Qb6 {[%emt 0:04:24]} 21. Nde4 {[%emt 0:02:44]} Rc8 {[%emt 0:03:26]} 22. Qe2 {[%emt 0:00:25]} Rc4 {[%emt 0:06:30]} 23. Nd2 {[%emt 0:02:58]} Rc7 {[%emt 0:02:24]} 24. Nde4 {[%emt 0:00:22]} Rc4 {[%emt 0:00:33]} 25. Nd2 {[%emt 0:00:17]} Rc7 {[%emt 0:00:03]} 26. Nde4 {[%emt 0:07:55]} Nd5 {[%emt 0:01:07]} 27. Nxd5 {[%emt 0:01:57]} Bxd5 {[%emt 0:00:10]} 28. Re1 {[%emt 0:13:37]} Qb7 {[%emt 0:02:08]} 29. f3 {[%emt 0:00:06]} f5 {[%emt 0:01:15]} 30. Nc3 {[%emt 0:02:01]} Bc4 {[%emt 0:01:13]} 31. Qc2 {[%emt 0:01:44]} e5 {[%emt 0:00:30]} 32. e4 {[%emt 0:00:46]} f4 {[%emt 0:00:53]} 33. Rd1 {[%emt 0:00:45]} Bc5+ {[%emt 0:00:47]} 34. Kh1 {[%emt 0:00:31]} Bd4 {[%emt 0:03:31]} 35. Qd2 {[%emt 0:01:04]} Qc6 {[%emt 0:03:04]} 36. Ba2 {[%emt 0:02:22]} Bxa2 {[%emt 0:00:44]} 37. Nxa2 {[%emt 0:00:16]} Qc2 {[%emt 0:01:00]} 38. Qxc2 {[%emt 0:08:49]} Rxc2 {[%emt 0:00:02]} 39. Nb4 {[%emt 0:00:12]} Rxb2 {[%emt 0:00:50]} 40. Nxa6 {[%emt 0:00:08]} Rb3 {[%emt 0:06:24]} 41. Nc7 {[%emt 0:30:38]} Kf7 {[%emt 0:30:20]} 42. h4 {[%emt 0:01:59]} Ke7 {[%emt 0:00:34]} 43. Nd5+ {[%emt 0:01:27]} Ke6 {[%emt 0:00:55]} 44. Nxf4+ {[%emt 0:00:55]} exf4 {[%emt 0:00:01]} 45. Rxd4 {[%emt 0:00:46]} Rxa3 {[%emt 0:00:01]} 46. Rb4 {[%emt 0:00:31]} Ra5 {[%emt 0:00:24]} 47. Kh2 {[%emt 0:00:42]} h5 {[%emt 0:01:31]} 48. Kh3 {[%emt 0:00:19]} Kd6 {[%emt 0:01:12]} 49. g3 {[%emt 0:00:21]} Kc5 {[%emt 0:01:40]} 50. Rb1 {[%emt 0:01:48]} Ra3 {[%emt 0:00:53]} 51. Rf1 {[%emt 0:00:32]} fxg3 {[%emt 0:00:15]} 52. Kxg3 {[%emt 0:00:15]} b4 {[%emt 0:00:01]} 53. Kf4 {[%emt 0:00:48]} b3 {[%emt 0:00:40]} 54. Kg5 {[%emt 0:00:48]} Ra6 {[%emt 0:00:05]} 55. Rb1 {[%emt 0:00:47]} Kc4 {[%emt 0:00:45]} 56. f4 {[%emt 0:00:18]} Kd4 {[%emt 0:07:56]} 57. Rxb3 Kxe4 58. Rb2 Kd4 59. Rb1 1/2-1/2